fUST/lending_fUST_20241225
["ID","MTS","AMOUNT","RATE_DAILY","PERIOD"]
[346634406,1735134559351,-8561.67,0.00010354,2]
[346634407,1735134559377,-500.0,0.00010354,2]
[346634408,1735134559403,-500.0,0.00010354,2]
[346634409,1735134559432,-190.62,0.00010354,2]
[346634410,1735134559459,-500.0,0.00010355,2]
[346634411,1735134559484,-438.19780376,0.00010355,2]
[346634412,1735134559511,-500.0,0.00010355,2]
[346634413,1735134559537,-500.0,0.00010355,2]
[346634414,1735134559563,-500.0,0.00010627,2]
[346634415,1735134559587,-1666.07,0.00010627,2]
[346634416,1735134559613,-500.0,0.00010627,2]
[346634417,1735134559640,-500.0,0.00010628,2]
[346634418,1735134559666,-500.0,0.00010628,2]
[346634419,1735134559690,-500.0,0.00010628,2]
[346634420,1735134559714,-500.0,0.00010628,2]
[346634421,1735134559738,-500.0,0.00010628,2]
[346634422,1735134559763,-502.65779969,0.00010628,2]
[346634423,1735134559788,-500.0,0.00010628,2]
[346634424,1735134559814,-575.14,0.00010628,2]
[346634425,1735134559838,-500.0,0.00010628,2]
[346634426,1735134559864,-500.0,0.00010628,2]
[346634427,1735134559889,-500.0,0.00010628,2]
[346634428,1735134559914,-500.0,0.00010628,2]
[346634429,1735134559940,-1793.51,0.00010628,2]
[346634430,1735134559964,-687.58,0.00010628,2]
[346634431,1735134559991,-158.83827581,0.00010628,2]
[346634432,1735134560014,-500.0,0.00010628,2]
[346634433,1735134560039,-886.95,0.00010628,2]
[346634434,1735134560064,-500.0,0.00010628,2]
[346634435,1735134560089,-500.0,0.00010628,2]
[346634436,1735134560114,-500.0,0.00010628,2]
[346634437,1735134560315,-500.0,0.00010628,2]
[346634438,1735134560341,-8561.67,0.00010628,2]
[346634439,1735134560366,-48.63108387,0.00010628,2]
[346634441,1735134584280,-150.98106469,0.0001008,2]
[346634442,1735134584307,-500.0,0.0001008,2]
[346634443,1735134584335,-266.73175854,0.0001008,2]
[346634444,1735134599685,1097.41,0.0001002,2]
[346634445,1735134609161,-236.51824146,0.0001008,2]
[346634446,1735134609188,-500.0,0.0001008,2]
[346634447,1735134609214,-486.67514981,0.0001008,2]
[346634448,1735134609245,-443.1260207,0.0001008,2]
[346634498,1735134631988,-597.42882949,0.0001008,2]
[346634500,1735134631998,-500.0,0.0001008,2]
[346634502,1735134632007,-500.0,0.0001008,2]
[346634504,1735134632017,-500.0,0.0001008,2]
[346634506,1735134632026,-500.0,0.0001008,2]
[346634508,1735134632035,-500.0,0.0001008,2]
[346634510,1735134632046,-500.0,0.0001008,2]
[346634512,1735134632056,-300.0,0.00010353,2]
[346634514,1735134632065,-500.0,0.00010354,2]
[346634516,1735134632074,-503.25,0.00010354,2]
[346634518,1735134632084,-500.0,0.00010354,2]
[346634520,1735134632093,-1527.23,0.00010354,2]
[346634522,1735134632102,-500.0,0.00010354,2]
[346634524,1735134632112,-441.55936729,0.00010354,2]
[346634653,1735134637874,-58.44063271,0.00010354,2]
[346634654,1735134637884,-500.0,0.00010354,2]
[346634655,1735134637894,-500.0,0.00010354,2]
[346634656,1735134637903,-500.0,0.00010354,2]
[346634657,1735134637916,-500.0,0.00010354,2]
[346634658,1735134637925,-451.36891613,0.00010628,2]
[346634659,1735134637935,-500.0,0.00010628,2]
[346634660,1735134637943,-500.0,0.00010628,2]
[346634661,1735134637954,-503.25,0.00010628,2]
[346634662,1735134637963,-500.0,0.00010628,2]
[346634663,1735134637972,-1527.23,0.00010628,2]
[346634664,1735134637982,-500.0,0.00010628,2]
[346634665,1735134637992,-500.0,0.00010628,2]
[346634666,1735134638001,-500.0,0.00010628,2]
[346634667,1735134638010,-500.0,0.00010628,2]
[346634668,1735134638019,-500.0,0.00010628,2]
[346634669,1735134638028,-500.0,0.00010628,2]
[346634670,1735134638037,-383.79119877,0.00010629,2]
[346634720,1735134645911,-116.20880123,0.00010629,2]
[346634722,1735134645921,-500.0,0.00010629,2]
[346634724,1735134645931,-500.0,0.00010902,2]
[346634726,1735134645941,-500.0,0.00010902,2]
[346634728,1735134645951,-500.0,0.00010902,2]
[346634730,1735134645961,-500.0,0.00010902,2]
[346634732,1735134645969,-1793.51,0.00010902,2]
[346634734,1735134645978,-687.58,0.00010902,2]
[346634735,1735134645989,-500.0,0.00010902,2]
[346634737,1735134645999,-886.95,0.00010902,2]
[346634739,1735134646008,-500.0,0.00010902,2]
[346634741,1735134646018,-500.0,0.00010902,2]
[346634743,1735134646027,-500.0,0.00010902,2]
[346634745,1735134646036,-364.56414819,0.00010902,2]
[346634852,1735134654773,323.77684334,9.979e-05,2]
[346634853,1735134662863,167.9,9.979e-05,2]
[346634855,1735134818275,291.78180289,9.978e-05,2]
[346634856,1735134904135,250.0,0.00010018,2]
[346634858,1735135520861,4418.5937072,9.354e-05,2]
[346634859,1735135630120,-300.0,0.00010077,2]
[346634860,1735135630143,-276.83830284,0.00010078,2]
[346634861,1735135653147,-168.95477098,0.00010078,2]
[346634862,1735135756427,-300.0,0.00010077,2]
[346634863,1735135756455,-500.0,0.00010078,2]
[346634864,1735135756481,-361.5638431,0.00010078,2]
[346634865,1735135756512,-138.4361569,0.00010078,2]
[346634866,1735135756537,-500.0,0.00010078,2]
[346634867,1735135756564,-267.61457447,0.00010078,2]
[346634868,1735135756595,-232.38542553,0.00010078,2]
[346634869,1735135756621,-500.0,0.00010078,2]
[346634870,1735135756647,-429.17841757,0.00010078,2]
[346634871,1735135761257,-70.82158243,0.00010078,2]
[346634872,1735135761281,-500.0,0.00010078,2]
[346634873,1735135761307,-500.0,0.00010078,2]
[346634874,1735135761330,-1845.83,0.00010078,2]
[346634875,1735135761354,-500.0,0.00010078,2]
[346634876,1735135761377,-294.13411961,0.00010078,2]
[346634877,1735135761400,-500.0,0.00010078,2]
[346634878,1735135761423,-734.32,0.00010078,2]
[346634879,1735135761446,-500.0,0.00010078,2]
[346634880,1735135761467,-500.0,0.00010078,2]
[346634881,1735135761489,-739.12,0.00010078,2]
[346634882,1735135761510,-500.0,0.00010078,2]
[346634883,1735135761531,-500.0,0.00010078,2]
[346634884,1735135761552,-500.0,0.00010078,2]
[346634885,1735135761573,-500.0,0.00010078,2]
[346634886,1735135761594,-597.96144457,0.00010078,2]
[346634887,1735135761616,-500.0,0.00010078,2]
[346634888,1735135761636,-500.0,0.00010078,2]
[346634889,1735135761657,-500.0,0.00010079,2]
[346634890,1735135761679,-500.0,0.00010079,2]
[346634891,1735135761701,-572.58,0.00010079,2]
[346634892,1735135761725,-500.0,0.00010079,2]
[346634893,1735135761746,-500.0,0.00010079,2]
[346634894,1735135761767,-500.0,0.00010079,2]
[346634895,1735135761787,-500.0,0.00010079,2]
[346634896,1735135761807,-500.0,0.00010079,2]
[346634897,1735135761828,-620.01,0.00010079,2]
[346634898,1735135761848,-168.0,0.00010079,2]
[346634899,1735135761868,-500.0,0.00010079,2]
[346634900,1735135761889,-500.0,0.00010079,2]
[346634901,1735135761910,-500.0,0.00010079,2]
[346634902,1735135761930,-500.0,0.00010079,2]
[346634903,1735135761952,-500.0,0.00010079,2]
[346634904,1735135761972,-500.0,0.00010079,2]
[346634905,1735135761995,-500.0,0.00010079,2]
[346634906,1735135762016,-583.67,0.00010079,2]
[346634907,1735135762036,-500.0,0.00010079,2]
[346634908,1735135762058,-500.0,0.00010079,2]
[346634909,1735135762078,-500.0,0.00010079,2]
[346634910,1735135762100,-500.0,0.00010079,2]
[346634911,1735135762121,-500.0,0.00010079,2]
[346634912,1735135762142,-537.97,0.00010079,2]
[346634913,1735135762162,-502.77188066,0.00010079,2]
[346634914,1735135762183,-500.0,0.00010079,2]
[346634915,1735135762204,-500.0,0.00010079,2]
[346634916,1735135762224,-500.0,0.00010079,2]
[346634917,1735135762246,-500.0,0.00010079,2]
[346634918,1735135762268,-500.0,0.00010079,2]
[346634919,1735135762289,-500.0,0.00010079,2]
[346634920,1735135762312,-504.82084746,0.00010079,2]
[346634921,1735135762332,-500.0,0.00010079,2]
[346634922,1735135762354,-500.0,0.00010079,4]
[346634923,1735135762376,-500.0,0.00010079,2]
[346634924,1735135762397,-500.0,0.00010079,2]
[346634925,1735135762418,-500.0,0.00010079,2]
[346634926,1735135762439,-500.0,0.00010079,2]
[346634927,1735135762462,-500.0,0.00010079,2]
[346634928,1735135762484,-500.0,0.00010079,2]
[346634929,1735135762505,-500.0,0.00010079,2]
[346634930,1735135762527,-500.0,0.00010079,2]
[346634931,1735135762548,-500.0,0.00010079,2]
[346634932,1735135762570,-500.0,0.00010079,2]
[346634933,1735135762592,-500.0,0.00010079,2]
[346634934,1735135762613,-500.0,0.00010079,2]
[346634935,1735135762634,-500.0,0.00010079,2]
[346634936,1735135762655,-1488.36,0.00010079,2]
[346634937,1735135762677,-500.0,0.00010079,2]
[346634938,1735135762700,-500.0,0.00010079,2]
[346634939,1735135762722,-500.0,0.00010079,2]
[346634940,1735135762742,-500.0,0.00010079,2]
[346634941,1735135762764,-500.0,0.00010079,2]
[346634942,1735135762785,-500.0,0.00010079,2]
[346634943,1735135762806,-500.0,0.00010079,2]
[346634944,1735135762827,-500.0,0.00010079,2]
[346634945,1735135762848,-500.0,0.00010079,2]
[346634946,1735135762869,-500.0,0.00010079,2]
[346634947,1735135762891,-500.0,0.00010079,2]
[346634948,1735135762912,-500.0,0.00010079,2]
[346634949,1735135762936,-500.0,0.00010079,2]
[346634950,1735135762959,-500.0,0.00010079,2]
[346634951,1735135762981,-500.0,0.00010079,2]
[346634952,1735135763004,-500.0,0.00010079,2]
[346634953,1735135763025,-500.0,0.00010079,2]
[346634954,1735135763047,-500.0,0.00010079,2]
[346634955,1735135763068,-500.0,0.00010079,2]
[346634956,1735135763089,-500.0,0.00010079,2]
[346634957,1735135763110,-500.0,0.00010079,2]
[346634958,1735135763131,-500.0,0.00010079,2]
[346634959,1735135763153,-500.0,0.00010079,2]
[346634960,1735135763173,-500.0,0.00010079,2]
[346634961,1735135763195,-500.0,0.00010079,2]
[346634962,1735135763216,-530.32,0.00010079,2]
[346634963,1735135763237,-500.0,0.00010079,2]
[346634964,1735135763258,-500.0,0.00010079,2]
[346634965,1735135763279,-500.0,0.00010079,2]
[346634966,1735135763303,-474.65180775,0.00010079,2]
[346634967,1735135763324,-500.0,0.00010079,2]
[346634968,1735135763346,-500.0,0.00010079,2]
[346634969,1735135763369,-7933.63,0.00010079,2]
[346634970,1735135763390,-500.0,0.00010079,2]
[346634971,1735135763411,-500.0,0.00010079,2]
[346634972,1735135763431,-500.0,0.00010079,2]
[346634973,1735135763461,-500.0,0.00010079,2]
[346634974,1735135763483,-500.0,0.0001008,2]
[346634975,1735135763504,-500.0,0.0001008,2]
[346634976,1735135763524,-500.0,0.0001008,2]
[346634977,1735135763546,-500.0,0.0001008,2]
[346634978,1735135763566,-500.0,0.0001008,2]
[346634979,1735135763588,-500.0,0.0001008,2]
[346634980,1735135763609,-500.0,0.0001008,2]
[346634981,1735135763630,-500.0,0.0001008,2]
[346634982,1735135763651,-108.63436908,0.0001008,2]
[346634983,1735135763730,-2712.2,0.00010079,2]
[346634984,1735135763753,-391.36563092,0.0001008,2]
[346634985,1735135763776,-500.0,0.0001008,2]
[346634986,1735135763799,-500.0,0.0001008,2]
[346634987,1735135763821,-500.0,0.0001008,2]
[346634988,1735135763845,-500.0,0.00010352,2]
[346634989,1735135763867,-500.0,0.00010352,2]
[346634990,1735135763892,-1845.83,0.00010352,2]
[346634991,1735135763915,-734.32,0.00010352,2]
[346634992,1735135763938,-739.12,0.00010352,2]
[346634993,1735135763966,-500.0,0.00010352,2]
[346634994,1735135763996,-500.0,0.00010352,2]
[346634995,1735135764019,-500.0,0.00010352,2]
[346634996,1735135764042,-403.25943383,0.00010352,2]
[346634997,1735135764064,-500.0,0.00010353,2]
[346634998,1735135764086,-500.0,0.00010353,2]
[346634999,1735135764107,-500.0,0.00010353,2]
[346635000,1735135764130,-593.66,0.00010353,2]
[346635001,1735135764152,-638.23,0.00010353,2]
[346635002,1735135764174,-174.6,0.00010353,2]
[346635003,1735135764197,-184.93,0.00010353,2]
[346635004,1735135764221,-500.0,0.00010353,2]
[346635005,1735135764243,-500.0,0.00010353,2]
[346635006,1735135764265,-589.3,0.00010353,2]
[346635007,1735135764287,-500.0,0.00010353,2]
[346635008,1735135764313,-500.0,0.00010353,2]
[346635009,1735135764336,-500.0,0.00010353,2]
[346635010,1735135764358,-500.0,0.00010353,2]
[346635011,1735135764381,-500.0,0.00010353,2]
[346635012,1735135764403,-1488.36,0.00010353,2]
[346635013,1735135764425,-500.0,0.00010353,2]
[346635014,1735135764449,-500.0,0.00010353,2]
[346635015,1735135764471,-457.72,0.00010353,2]
[346635016,1735135764492,-500.0,0.00010353,2]
[346635017,1735135764624,-500.0,0.00010353,2]
[346635018,1735135764650,-500.0,0.00010353,2]
[346635019,1735135764672,-542.24,0.00010353,2]
[346635020,1735135764697,-500.0,0.00010353,2]
[346635021,1735135764726,-500.0,0.00010353,2]
[346635022,1735135764749,-535.5,0.00010353,2]
[346635023,1735135764772,-500.0,0.00010353,2]
[346635024,1735135764795,-500.0,0.00010353,2]
[346635025,1735135764816,-644.74,0.00010353,2]
[346635026,1735135764838,-500.0,0.00010353,2]
[346635027,1735135764860,-500.0,0.00010353,2]
[346635028,1735135764882,-600.46,0.00010353,2]
[346635029,1735135764904,-500.0,0.00010353,2]
[346635030,1735135764926,-500.0,0.00010353,2]
[346635031,1735135764949,-7933.63,0.00010353,2]
[346635032,1735135764971,-500.0,0.00010353,2]
[346635033,1735135764992,-500.0,0.00010353,2]
[346635034,1735135765013,-500.0,0.00010353,2]
[346635035,1735135765034,-2712.2,0.00010353,2]
[346635036,1735135765055,-500.0,0.00010354,2]
[346635037,1735135765076,-500.0,0.00010354,2]
[346635038,1735135765096,-190.62,0.00010354,2]
[346635039,1735135765117,-500.0,0.00010354,2]
[346635040,1735135765138,-500.0,0.00010354,2]
[346635041,1735135765160,-500.0,0.00010626,2]
[346635042,1735135765182,-561.25,0.00010626,2]
[346635043,1735135765205,-1845.83,0.00010626,2]
[346635044,1735135765226,-734.32,0.00010626,2]
[346635045,1735135765248,-739.12,0.00010626,2]
[346635046,1735135765270,-500.0,0.00010626,2]
[346635047,1735135765292,-500.0,0.00010626,2]
[346635048,1735135765317,-500.0,0.00010626,2]
[346635049,1735135765339,-482.27661,0.00010627,2]
[346635050,1735135765361,-500.0,0.00010627,2]
[346635051,1735135765385,-500.0,0.00010627,2]
[346635052,1735135765408,-162.22208545,0.00010627,2]
[346635053,1735135765430,-500.0,0.00010627,2]
[346635054,1735135765451,-500.0,0.00010627,2]
[346635055,1735135765473,-193.47,0.00010627,2]
[346635056,1735135765494,-500.0,0.00010627,2]
[346635057,1735135765516,-500.0,0.00010627,2]
[346635058,1735135765537,-1488.36,0.00010627,2]
[346635059,1735135765558,-500.0,0.00010627,2]
[346635060,1735135765580,-500.0,0.00010627,2]
[346635061,1735135765603,-500.0,0.00010627,2]
[346635062,1735135765625,-500.0,0.00010627,2]
[346635063,1735135765648,-500.0,0.00010627,2]
[346635064,1735135765670,-500.0,0.00010627,2]
[346635065,1735135765693,-500.0,0.00010627,2]
[346635066,1735135765713,-488.13,0.00010627,2]
[346635067,1735135765735,-500.0,0.00010627,2]
[346635068,1735135765756,-500.0,0.00010627,2]
[346635069,1735135765778,-548.02,0.00010627,2]
[346635070,1735135765800,-7933.63,0.00010627,2]
[346635071,1735135765822,-420.86426194,0.00010627,2]
[346635072,1735135765843,-500.0,0.00010627,2]
[346635073,1735135765865,-2712.2,0.00010627,2]
[346635074,1735135765886,-500.0,0.00010628,2]
[346635075,1735135765908,-368.1850447,0.00010628,2]
[346635076,1735135765930,-500.0,0.00010628,2]
[346635077,1735135765951,-500.0,0.00010628,2]
[346635078,1735135765972,-1589.84907135,0.0001078,2]
[346635079,1735135773897,500.0,0.00010078,2]
[346635080,1735135774167,209.41989641,0.00010352,2]
[346635081,1735135776135,500.0,0.00010078,2]
[346635082,1735135776728,500.0,0.00010352,2]
[346635083,1735135777004,500.0,0.00010626,2]
[346635084,1735135786279,500.0,0.00010078,2]
[346635085,1735135786546,500.0,0.00010352,2]
[346635086,1735135786933,500.0,0.00010626,2]
[346635087,1735135807089,500.0,0.00010078,2]
[346635088,1735135807313,500.0,0.00010352,2]
[346635089,1735135807565,500.0,0.00010626,2]
[346635090,1735135811314,500.0,0.00010078,2]
[346635091,1735135811586,500.0,0.00010352,2]
[346635092,1735135811836,500.0,0.00010626,2]
[346635093,1735135820835,500.0,0.00010078,2]
[346635094,1735135821099,500.0,0.00010352,2]
[346635095,1735135821367,500.0,0.00010626,2]
[346635096,1735135826236,500.0,0.00010078,2]
[346635097,1735135826496,500.0,0.00010352,2]
[346635098,1735135826738,500.0,0.00010626,2]
[346635123,1735135832195,-500.0,0.00010835,2]
[346635124,1735135832205,-1845.83,0.000109,2]
[346635126,1735135832214,-734.32,0.000109,2]
[346635128,1735135832223,-739.12,0.000109,2]
[346635130,1735135832233,-195.99087896,0.000109,2]
[346635132,1735135832244,-291.78200034,0.000109,2]
[346635147,1735135835915,558.13,0.00010079,2]
[346635148,1735135836174,558.13,0.00010353,2]
[346635149,1735135836765,558.13,0.00010627,2]
[346635178,1735135839156,-12.2271207,0.000109,2]
[346635179,1735135839166,-500.0,0.000109,2]
[346635180,1735135839176,-500.0,0.000109,2]
[346635181,1735135839185,-500.0,0.000109,2]
[346635182,1735135839194,-500.0,0.000109,2]
[346635183,1735135839205,-496.25325487,0.000109,2]
[346635184,1735135839217,-500.0,0.000109,2]
[346635185,1735135839227,-500.0,0.000109,2]
[346635186,1735135839237,-500.0,0.000109,2]
[346635187,1735135839247,-500.0,0.00010901,2]
[346635188,1735135839256,-368.46859502,0.00010901,2]
[346635189,1735135839271,-500.0,0.00010901,2]
[346635190,1735135839280,-500.0,0.00010901,2]
[346635191,1735135839289,-488.53,0.00010901,2]
[346635192,1735135839299,-478.78,0.00010901,2]
[346635193,1735135839309,-251.16436547,0.00010901,2]
[346635194,1735135839324,-500.0,0.00010901,2]
[346635195,1735135839333,-7933.63,0.00010901,2]
[346635196,1735135839342,-500.0,0.00010901,2]
[346635197,1735135839352,-2712.2,0.00010901,2]
[346635198,1735135839363,-558.13,0.00010901,2]
[346635199,1735135839372,-500.0,0.00010902,2]
[346635200,1735135839382,-500.0,0.00010902,2]
[346635201,1735135839393,-500.0,0.00010902,2]
[346635202,1735135839403,-151.0,0.00010959,2]
[346635203,1735135839412,-151.0,0.00010959,2]
[346635204,1735135839422,-151.0,0.00010959,2]
[346635205,1735135839432,-151.0,0.00010959,2]
[346635206,1735135839441,-151.0,0.00010959,2]
[346635207,1735135839451,-151.0,0.00010959,2]
[346635208,1735135839461,-151.0,0.00010959,2]
[346635209,1735135839470,-151.0,0.00010959,2]
[346635210,1735135839481,-151.0,0.00010959,2]
[346635211,1735135839490,-855.44580952,0.00011,2]
[346635212,1735135839500,-151.0,0.0001101,2]
[346635213,1735135839511,-151.0,0.0001101,2]
[346635214,1735135839521,-1000.0,0.00011022,2]
[346635215,1735135839530,-1000.0,0.00011033,2]
[346635216,1735135839539,-41.16959816,0.00011074,2]
[346635217,1735135839551,-308.6548958,0.00011074,2]
[346635402,1735135842404,500.0,0.00010079,2]
[346635405,1735135842658,500.0,0.00010353,2]
[346635421,1735135842936,500.0,0.00010627,2]
[346635466,1735135843379,-997.92713111,0.00011074,2]
[346635510,1735135846223,-274.58480163,0.00010901,2]
[346635511,1735135846233,-7129.55539273,0.00011074,2]
[346635512,1735135846244,-641.62234858,0.00011115,2]
[346635513,1735135846253,-1000.0,0.00011124,2]
[346635514,1735135846263,-747.493,0.0001113,2]
[346635515,1735135846273,-151.0,0.00011157,2]
[346635516,1735135846282,-274.601,0.00011172,2]
[346635517,1735135846292,-1845.83,0.00011174,2]
[346635518,1735135846302,-734.32,0.00011174,2]
[346635519,1735135846314,-739.12,0.00011174,2]
[346635520,1735135846327,-500.0,0.00011174,2]
[346635521,1735135846337,-500.0,0.00011174,2]
[346635522,1735135846347,-500.0,0.00011174,2]
[346635523,1735135846356,-500.0,0.00011174,2]
[346635524,1735135846366,-500.0,0.00011174,2]
[346635525,1735135846376,-500.0,0.00011174,2]
[346635526,1735135846385,-500.0,0.00011174,2]
[346635527,1735135846396,-500.0,0.00011174,2]
[346635528,1735135846406,-19261.465438,0.00011175,2]
[346635529,1735135846416,-500.0,0.00011175,2]
[346635530,1735135846425,-151.0,0.00011175,2]
[346635531,1735135846435,-151.0,0.00011175,2]
[346635532,1735135846444,-500.0,0.00011175,2]
[346635533,1735135846454,-500.0,0.00011175,2]
[346635534,1735135846463,-171.491832,0.00011175,2]
[346635535,1735135846472,-500.0,0.00011175,2]
[346635536,1735135846482,-7933.63,0.00011175,2]
[346635537,1735135846492,-500.0,0.00011175,2]
[346635538,1735135846501,-2712.2,0.00011175,2]
[346635539,1735135846510,-558.13,0.00011175,2]
[346635540,1735135846520,-500.0,0.00011176,2]
[346635541,1735135846529,-500.0,0.00011176,2]
[346635542,1735135846539,-1000.0,0.00011183,2]
[346635543,1735135846549,-352.2050668,0.0001126,2]
[346635544,1735135846558,-249.095,0.00011358,2]
[346635545,1735135846567,-2119.0,0.00011358,2]
[346635546,1735135846576,-1000.0,0.00011383,2]
[346635547,1735135846586,-8477.3070178,0.00011399,2]
[346635548,1735135846596,-846.97759622,0.00011448,2]
[346635549,1735135846608,-1845.83,0.00011448,2]
[346635550,1735135846619,-734.32,0.00011448,2]
[346635551,1735135846629,-739.12,0.00011448,2]
[346635552,1735135846639,-500.0,0.00011448,2]
[346635553,1735135846648,-500.0,0.00011448,2]
[346635554,1735135846658,-500.0,0.00011448,2]
[346635555,1735135846668,-500.0,0.00011448,2]
[346635556,1735135846677,-500.0,0.00011448,2]
[346635557,1735135846687,-500.0,0.00011448,2]
[346635558,1735135846698,-500.0,0.00011448,2]
[346635559,1735135846708,-500.0,0.00011448,2]
[346635560,1735135846718,-500.0,0.00011449,2]
[346635561,1735135846727,-151.0,0.00011449,2]
[346635562,1735135846738,-151.0,0.00011449,2]
[346635563,1735135846748,-215.58649511,0.00011449,2]
[346635564,1735135846757,-429.07466921,0.00011449,2]
[346635565,1735135846767,-500.0,0.00011449,2]
[346635566,1735135846776,-7933.63,0.00011449,2]
[346635567,1735135846785,-500.0,0.00011449,2]
[346635568,1735135846795,-2712.2,0.00011449,2]
[346635569,1735135846804,-558.13,0.00011449,2]
[346635570,1735135846814,-500.0,0.0001145,2]
[346635571,1735135846823,-500.0,0.0001145,2]
[346635572,1735135846833,-151.0,0.00011457,2]
[346635573,1735135846844,-151.0,0.00011457,2]
[346635574,1735135846854,-571.8382122,0.00011473,2]
[346635575,1735135846865,-500.0,0.00011474,2]
[346635576,1735135846874,-400.0,0.000115,2]
[346635577,1735135846883,-233.6404696,0.00011606,2]
[346635578,1735135846893,-1845.83,0.00011722,2]
[346635579,1735135846902,-734.32,0.00011722,2]
[346635580,1735135846912,-739.12,0.00011722,2]
[346635581,1735135846921,-500.0,0.00011722,2]
[346635582,1735135846930,-571.77009969,0.00011722,2]
[346635583,1735135846940,-500.0,0.00011722,2]
[346635584,1735135846949,-500.0,0.00011722,2]
[346635585,1735135846959,-500.0,0.00011722,2]
[346635586,1735135846969,-500.0,0.00011722,2]
[346635587,1735135846979,-500.0,0.00011722,2]
[346635588,1735135846988,-640.06088583,0.00011722,2]
[346635589,1735135846997,-500.0,0.00011723,2]
[346635590,1735135847007,-329.9006746,0.00011723,2]
[346635591,1735135854815,1307.46,0.00010078,2]
[346635592,1735135855070,1307.46,0.00010352,2]
[346635593,1735135855348,253.75168532,0.00010626,2]
[346635594,1735135949872,500.0,9.977e-05,2]
[346635595,1735135958594,619.28809228,9.977e-05,2]
[346635596,1735136064165,300.0,9.976e-05,2]
[346635597,1735136079692,300.0,9.976e-05,2]
[346635598,1735136092329,235.69791696,0.0001,7]
[346635599,1735136230517,258.78513629,9.977e-05,2]
[346635601,1735136595873,10000.0,0.00023,120]
[346635604,1735136696807,2000.00000099,0.0001,2]
[346635608,1735136780398,24900.0,9.397e-05,2]
[346635609,1735136825147,-300.0,0.00010076,2]
[346635610,1735136825172,-77.94745688,0.00010077,2]
[346635611,1735136831102,-299.52745809,0.00010077,2]
[346635612,1735136838102,-124.20630339,0.00010077,2]
[346635613,1735136838125,-100.27849648,0.00010077,2]
[346635618,1735136947123,-419.92150352,0.00010077,2]
[346635619,1735136947144,-500.0,0.00010077,2]
[346635620,1735136947166,-347.79723069,0.00010077,2]
[346635621,1735136947188,-500.0,0.00010077,2]
[346635622,1735136947209,-500.0,0.00010077,2]
[346635623,1735136947231,-500.0,0.00010077,2]
[346635624,1735136947253,-500.0,0.00010077,2]
[346635625,1735136947274,-500.0,0.00010077,2]
[346635626,1735136947294,-500.0,0.00010077,2]
[346635627,1735136947315,-500.0,0.00010077,2]
[346635628,1735136947335,-500.0,0.00010077,2]
[346635629,1735136947357,-500.0,0.00010077,2]
[346635630,1735136947377,-500.0,0.00010077,2]
[346635631,1735136947397,-500.0,0.00010077,2]
[346635632,1735136947417,-500.0,0.00010077,2]
[346635633,1735136947440,-500.0,0.00010077,2]